bitfinex/quotes_SOLUSD_20220227
["timestamp","ask_amount","ask_price","bid_price","bid_amount"]
[1645969224449,1.42141736,90.099,89.973,108.9]
[1645969224646,1.64037103,90.098,89.975,108.9]
[1645969224846,22.5843,90.115,89.977,108.9]
[1645969224847,1.35287098,90.097,89.977,108.9]
[1645969225046,1.52940346,90.097,89.979,108.9]
[1645969225245,22.8518,90.088,89.981,108.9]
[1645969225446,16.6646,90.11,90.001,108.9]
[1645969225645,22.5843,90.115,90.002,3.26729369]
[1645969225847,22.5843,90.115,90.003,108.9]
[1645969226048,22.0843,90.115,90.004,2.74948152]
[1645969226249,22.0843,90.115,90.006,108.9]
[1645969226546,22.0843,90.115,90.007,3.20428314]
[1645969226746,21.8343,90.115,90.007,3.20428314]
[1645969226949,21.8343,90.115,90.031,108.9]
[1645969227148,21.8343,90.115,90.033,108.9]
[1645969227348,21.8343,90.115,90.034,2.89650188]
[1645969227548,23.924,90.129,90.034,2.89650188]
[1645969227950,23.924,90.129,90.04,16.6596]
[1645969228149,1.81311234,90.128,90.041,0.25]
[1645969228348,23.924,90.129,90.041,0.25]
[1645969228550,23.924,90.129,90.041,3.30658134]
[1645969228752,23.924,90.129,90.041,0.25]
[1645969229151,23.924,90.129,90.051,108.9]
[1645969229351,24.2789,90.138,90.053,108.9]
[1645969229555,24.2789,90.138,90.054,3.06003305]
[1645969229751,24.2789,90.138,90.054,2.81003305]
[1645969229951,2.74678921,90.166,90.055,0.25]
[1645969230352,1.66066624,90.172,90.055,6.25]
[1645969230553,22.821,90.173,90.06,55.5019]
[1645969230755,1.67933068,90.172,90.061,0.25]
[1645969230952,1.67933068,90.172,90.058,2.665349]
[1645969231152,22.821,90.173,90.06,108.9]
[1645969231354,22.821,90.173,90.063,2.45191971]
[1645969231653,24.2762,90.189,90.12,16.6445]
[1645969231853,24.2762,90.189,90.121,26.07397022]
[1645969232054,24.2762,90.189,90.122,2.81081609]
[1645969232677,24.2762,90.189,90.123,0.25]
[1645969232877,45.9519,90.209,90.13,16.6428]
[1645969233082,45.9519,90.209,90.123,0.25]
[1645969233083,45.9519,90.209,90.131,0.25]
[1645969233284,45.9519,90.209,90.123,0.25]
[1645969234078,1.45825959,90.208,90.114,2.53627728]
[1645969234281,2.74678921,90.19,90.076,2.49116172]
[1645969234781,2.74678921,90.2,90.079,2.74678921]
[1645969234979,45.9519,90.209,90.12,16.6444]
[1645969235178,45.9519,90.209,90.121,35.19588382]
[1645969235379,45.9519,90.209,90.122,2.7521364]
[1645969235579,45.9519,90.209,90.121,35.19588382]
[1645969235580,1.51899822,90.208,90.121,35.19588382]
[1645969235980,45.9519,90.209,90.121,35.19588382]
[1645969236180,45.9519,90.209,90.13,16.6427]
[1645969236380,45.9519,90.209,90.131,2.9626007]
[1645969236580,45.9519,90.209,90.1,55.477]
[1645969236781,1.75359491,90.208,90.08,2.84798058]
[1645969236980,2.74678921,90.19,90.072,3.11661326]
[1645969237183,2.74678921,90.19,90.066,2.33382084]
[1645969237582,19.39678921,90.19,90.08,16.6519]
[1645969237786,24.72315527,90.189,90.081,28.83933535]
[1645969237985,25.91218921,90.189,90.082,2.64805472]
[1645969238185,23.1654,90.189,90.082,2.64805472]
[1645969238385,1.80521228,90.188,90.082,2.64805472]
[1645969238585,4.55200149,90.188,90.082,2.64805472]
[1645969238989,23.1654,90.189,90.082,2.64805472]
[1645969239188,1.51412589,90.188,90.083,0.25]
[1645969239390,2.74678921,90.187,90.083,0.25]
[1645969239589,16.6518,90.18,90.083,0.25]
[1645969239788,16.6518,90.18,90.083,3.13903056]
[1645969240189,22.6703,90.179,90.083,3.13903056]
[1645969241188,22.6703,90.179,90.091,108.9]
[1645969241388,22.6703,90.179,90.092,2.65948638]
[1645969241691,16.6535,90.17,90.066,2.82771921]
[1645969241888,1.55318692,90.168,90.041,2.76841156]
[1645969242492,1.55318692,90.168,90.07,16.6532]
[1645969242691,1.55318692,90.168,90.071,146.02129117]
[1645969242889,1.55318692,90.168,90.072,2.84089051]
[1645969243692,1.55318692,90.168,90.073,2.87921458]
[1645969243891,2.74678921,90.167,90.071,34.54347979]
[1645969244091,16.6557,90.16,90.072,0.25]
[1645969244290,1.85460256,90.159,90.072,0.25]
[1645969244691,4.60139177,90.159,90.071,34.54347979]
[1645969244891,4.60139177,90.159,90.072,2.85103654]
[1645969245097,1.85460256,90.159,90.072,2.85103654]
[1645969245291,2.74678921,90.158,90.071,34.54347979]
[1645969246196,2.74678921,90.158,90.055,3.04803626]
[1645969246197,2.74678921,90.158,90.025,20.6999]
[1645969246391,108.9,90.156,90.027,2.72137306]
[1645969246591,1.85045514,90.155,90.027,2.72137306]
[1645969246791,4.59724435,90.155,90.021,111.91141116]
[1645969246993,2.74678921,90.154,90.022,2.49154766]
[1645969247191,2.74678921,90.154,90.03,16.6609]
[1645969247392,2.74678921,90.154,90.031,2.70916888]
[1645969247596,2.74678921,90.154,90.032,0.25]
[1645969247794,2.74678921,90.154,90.032,3.34753826]
[1645969247995,2.74678921,90.154,90.032,3.09753826]
[1645969248195,108.9,90.152,90.032,3.09753826]
[1645969248396,1.7304053,90.151,90.024,2.26162389]
[1645969248596,108.9,90.15,89.997,4.439]
[1645969248795,111.17,90.148,89.986,2.42663201]
[1645969248996,108.9,90.146,89.986,2.42663201]
[1645969249197,1.53443678,90.145,89.986,2.42663201]
[1645969249396,113.341,90.144,89.986,2.42663201]
[1645969249595,2.27,90.138,89.987,30.9336906]
[1645969249795,108.9,90.099,89.987,30.9336906]
[1645969249995,2.27,90.128,89.987,30.9336906]
[1645969249996,108.9,90.097,89.987,30.9336906]
[1645969250199,108.9,90.095,89.942,2.73517714]
[1645969250396,108.9,90.093,89.922,6.78501434]
[1645969250595,2.27,90.088,89.922,6.78501434]
[1645969250797,113.344,90.087,89.922,2.34301434]
[1645969250996,1.70675159,90.086,89.923,2.74678921]
[1645969251196,125.5741,90.07,89.93,16.6787]
[1645969251395,1.3809085,90.069,89.931,2.69409916]
[1645969251599,4.12769771,90.069,89.931,2.69409916]
[1645969251896,4.12769771,90.069,89.93,16.6787]
[1645969251897,108.9,90.067,89.924,31.06288817]
[1645969252099,1.8538495,90.066,89.924,31.06288817]
[1645969252296,1.8538495,90.066,89.868,108.9]
[1645969252297,16.679,90.03,89.91,16.6829]
[1645969252496,16.679,90.03,89.862,21.0593]
[1645969252497,110.68163952,90.028,89.863,3.00102252]
[1645969252699,108.9,90.026,89.871,2.74678921]
[1645969252896,6.25665146,90.025,89.872,6.0]
[1645969253296,4.55744067,90.025,89.874,2.7912626]
[1645969253496,4.446,90.024,89.875,6.0]
[1645969253696,1.81065146,90.025,89.876,0.25]
[1645969253895,2.74678921,90.023,89.876,0.25]
[1645969254095,4.446,90.022,89.876,2.74678921]
[1645969254295,4.446,90.022,89.877,8.74678921]
[1645969254496,16.6842,90.02,89.9,16.6847]
[1645969254697,6.00834803,90.019,89.901,34.67265638]
[1645969254897,2.74678921,90.019,89.901,34.67265638]
[1645969255096,2.74678921,90.019,89.902,2.34168759]
[1645969255497,2.74678921,90.019,89.903,0.25]
[1645969255898,2.74678921,90.019,89.902,2.34168759]
[1645969256298,1.82110922,90.026,89.902,2.34168759]
[1645969256499,16.6834,90.01,89.902,2.34168759]
[1645969256801,1.72308793,90.009,89.902,2.34168759]
[1645969257001,31.25471364,90.009,89.902,2.34168759]
[1645969257203,2.74678921,90.008,89.902,2.34168759]
[1645969257400,25.58118921,90.008,89.887,2.60149035]
[1645969257602,16.6877,89.99,89.87,55.6241]
[1645969257803,16.6877,89.99,89.859,4.447]
[1645969258001,52.7149,89.989,89.841,2.74678921]
[1645969258202,1.70158878,89.988,89.841,2.74678921]
[1645969258401,1.70158878,89.988,89.844,31.91577625]
[1645969258402,4.448,89.987,89.844,31.91577625]
[1645969258602,29.53162571,89.988,89.844,31.91577625]
[1645969258802,26.7848365,89.986,89.845,2.99878184]
[1645969259002,16.6949,89.95,89.85,16.6947]
[1645969259202,1.67774425,89.949,89.851,2.48040278]
[1645969259402,4.42453346,89.949,89.851,2.48040278]
[1645969259604,2.74678921,89.949,89.821,2.74678921]
[1645969259803,54.73798921,89.948,89.821,2.74678921]
[1645969260103,54.73798921,89.948,89.791,2.6855863]
[1645969260104,4.22766845,89.947,89.791,2.6855863]
[1645969260307,125.61901525,89.947,89.792,4.45]
[1645969260604,58.11338255,89.946,89.793,28.41558102]
[1645969260804,1.66048263,89.945,89.794,2.74850408]
[1645969261006,31.19210834,89.945,89.795,0.25]
[1645969261206,16.6961,89.94,89.801,108.9]
[1645969261405,16.6961,89.94,89.804,2.76070431]
[1645969261607,16.6961,89.94,89.805,6.25]
[1645969261805,16.6961,89.94,89.808,108.9]
[1645969262007,16.6961,89.94,89.811,2.91603984]
[1645969262206,16.6961,89.94,89.814,2.56209181]
[1645969262406,16.6961,89.94,89.817,2.78690422]
[1645969262607,78.5149,89.947,89.841,35.76124039]
[1645969262808,78.5149,89.947,89.842,8.94834302]
[1645969263007,78.5149,89.947,89.843,109.15]
[1645969263207,78.5149,89.947,89.846,2.31628491]
[1645969263406,78.5149,89.947,89.847,6.25]
[1645969263812,78.5149,89.947,89.847,0.25]
[1645969264606,47.5412,89.948,89.847,0.25]
[1645969264607,47.5412,89.948,89.871,32.06597904]
[1645969264806,47.5412,89.948,89.872,0.25]
[1645969265009,47.5412,89.948,89.872,2.94994774]
[1645969265608,47.5412,89.948,89.873,2.74678921]
[1645969265811,47.5412,89.948,89.874,0.25]
[1645969266209,24.0445,89.969,89.891,32.50830245]
[1645969266409,73.6394,89.996,89.892,0.25]
[1645969266708,73.6394,89.996,89.892,2.68112646]
[1645969267309,73.6394,89.996,89.91,16.6838]
[1645969267511,73.6394,89.996,89.911,30.17720791]
[1645969267710,73.6394,89.996,89.912,2.62879541]
[1645969268213,48.4885,89.998,89.912,2.62879541]
[1645969268611,48.4885,89.998,89.92,16.6805]
[1645969268817,48.4885,89.998,89.921,2.59757606]
[1645969269613,48.4885,89.998,89.912,2.94154591]
[1645969270016,48.4885,89.998,89.862,4.446]
[1645969270017,113.19628881,89.997,89.856,2.60574061]
[1645969270215,108.9,89.995,89.856,2.60574061]
[1645969270420,1.63439919,89.994,89.856,2.60574061]
[1645969270716,1.38312038,89.992,89.856,2.60574061]
[1645969270914,1.38312038,89.992,89.822,16.6154]
[1645969270915,4.448,89.991,89.857,29.99071241]
[1645969271115,108.9,89.99,89.858,2.75204155]
[1645969271319,108.9,89.988,89.858,2.75204155]
[1645969271522,16.6956,89.95,89.858,2.75204155]
[1645969271720,46.3537,89.969,89.859,2.49546375]
[1645969271919,24.013,89.968,89.859,2.49546375]
[1645969272121,26.75978921,89.968,89.859,2.49546375]
[1645969272321,1.70734312,89.967,89.859,2.49546375]
[1645969272520,6.19511951,89.966,89.859,2.49546375]
[1645969272721,108.9,89.965,89.859,2.49546375]
[1645969272923,108.9,89.963,89.859,2.49546375]
[1645969273122,1.44821565,89.962,89.859,2.49546375]
[1645969273321,4.19500486,89.962,89.859,2.49546375]
[1645969273522,108.9,89.959,89.859,2.49546375]
[1645969273737,1.47946033,89.958,89.859,2.49546375]
[1645969273936,4.22624954,89.958,89.859,2.49546375]
[1645969274136,111.64678921,89.957,89.859,2.49546375]
[1645969274337,1.46397742,89.956,89.859,2.49546375]
[1645969274537,108.9,89.939,89.802,4.448]
[1645969274738,1.77836559,89.938,89.803,2.59241414]
[1645969274938,108.9,89.937,89.803,2.59241414]
[1645969275138,108.9,89.935,89.803,2.59241414]
[1645969275338,1.86494854,89.934,89.803,2.59241414]
[1645969275541,4.45,89.933,89.804,32.46541909]
[1645969275739,1.59673864,89.932,89.805,2.70278439]
[1645969276139,108.9,89.909,89.805,2.70278439]
[1645969276341,110.75293947,89.93,89.805,2.70278439]
[1645969276541,108.9,89.928,89.805,2.70278439]
[1645969276839,2.74678921,89.909,89.805,2.70278439]
[1645969277641,16.7045,89.9,89.805,2.70278439]
[1645969277841,46.5417,89.899,89.805,2.70278439]
[1645969278944,108.9,89.898,89.805,2.70278439]
[1645969279143,49.28848921,89.899,89.805,2.70278439]
[1645969279546,46.5417,89.899,89.811,2.57048559]
[1645969279945,46.5417,89.899,89.812,0.25]
[1645969280249,46.5417,89.899,89.811,2.57048559]
[1645969280844,46.5417,89.899,89.812,0.25]
[1645969281044,46.5417,89.899,89.811,2.57048559]
[1645969282444,16.7053,89.89,89.811,2.57048559]
[1645969282645,16.7053,89.89,89.805,2.28124971]
[1645969283944,19.45208921,89.89,89.805,2.28124971]
[1645969284745,108.9,89.889,89.8,6.76]
[1645969284946,108.9,89.869,89.8,6.76]
[1645969285548,4.14951574,89.868,89.8,6.76]
[1645969285747,4.14951574,89.868,89.768,25.72389058]
[1645969285951,108.9,89.866,89.769,2.70470201]
[1645969286147,1.78623051,89.848,89.731,3.08730375]
[1645969286750,2.74678921,89.847,89.731,3.08730375]
[1645969286950,1.69651724,89.845,89.733,2.48809724]
[1645969287249,4.454,89.844,89.733,2.48809724]
[1645969287449,108.9,89.843,89.704,2.56631629]
[1645969287651,108.9,89.829,89.699,2.64706462]
[1645969287850,6.24888186,89.828,89.666,2.95391881]
[1645969288051,1.49854718,89.826,89.667,4.456]
[1645969288253,1.49854718,89.826,89.668,32.39101122]
[1645969288453,2.74678921,89.827,89.669,7.04676461]
[1645969288651,46.7678,89.829,89.69,16.7242]
[1645969288853,46.7678,89.829,89.691,42.2405023]
[1645969289050,2.74678921,89.828,89.691,34.90248889]
[1645969289252,2.74678921,89.828,89.692,2.84093826]
[1645969289453,4.38806063,89.828,89.692,2.84093826]
[1645969289850,7.20278921,89.827,89.692,2.84093826]
[1645969290050,108.9,89.826,89.692,2.84093826]
[1645969290251,6.08278511,89.825,89.692,2.84093826]
[1645969290453,16.7221,89.82,89.7,16.7223]
[1645969290755,108.9,89.818,89.692,2.84093826]
[1645969290959,108.9,89.816,89.655,0.5]
[1645969291251,1.70255788,89.813,89.666,2.62844179]
[1645969291653,4.457,89.812,89.667,31.74380679]
[1645969291853,108.9,89.811,89.668,3.00455289]
[1645969292051,115.21841015,89.81,89.668,3.00455289]
[1645969292252,1.66576282,89.809,89.669,0.25]
[1645969292452,19.47238921,89.81,89.67,125.6283]
[1645969292653,2.74678921,89.808,89.671,9.25335779]
[1645969292854,2.74678921,89.808,89.672,6.25]
[1645969293755,2.74678921,89.808,89.691,33.51840213]
[1645969293955,2.74678921,89.808,89.692,111.54748919]
[1645969294156,2.74678921,89.824,89.693,2.36074466]
[1645969294355,46.6009,89.829,89.694,6.25]
[1645969294554,46.6009,89.829,89.695,4.456]
[1645969294757,46.6009,89.829,89.696,109.15]
[1645969294959,46.6009,89.829,89.698,108.9]
[1645969295157,46.6009,89.829,89.699,10.706]
[1645969295357,46.6009,89.829,89.7,6.0]
[1645969295559,46.6009,89.829,89.71,16.7209]
[1645969295758,2.74678921,89.828,89.712,27.74785458]
[1645969295958,2.74678921,89.828,89.713,2.98146849]
[1645969296161,4.36220233,89.828,89.713,2.73146849]
[1645969296358,2.74678921,89.828,89.713,2.73146849]
[1645969296558,2.74678921,89.827,89.713,2.73146849]
[1645969297560,4.49002996,89.827,89.713,2.73146849]
[1645969297961,2.74678921,89.826,89.713,2.73146849]
[1645969298161,108.9,89.819,89.693,2.30552672]
[1645969298362,108.9,89.817,89.666,2.69333645]
[1645969298663,108.9,89.815,89.666,2.69333645]
[1645969298862,108.9,89.813,89.666,2.69333645]
[1645969299061,108.9,89.811,89.667,31.57374021]
[1645969299265,1.35458092,89.81,89.666,2.69333645]
[1645969299464,1.35458092,89.81,89.666,2.9074241]
[1645969299465,0.58,89.777,89.666,2.9074241]
[1645969299663,0.58,89.777,89.609,17.08138]
[1645969299664,4.458,89.776,89.609,17.08138]
[1645969299863,108.9,89.774,89.61,2.71914588]
[1645969300064,108.9,89.772,89.61,2.71914588]
[1645969300262,1.44053041,89.771,89.611,2.37276998]
[1645969300463,16.7386,89.75,89.613,3.09981939]
[1645969300664,71.014,89.749,89.613,3.09981939]
[1645969300864,73.76078921,89.749,89.614,6.0]
[1645969301066,73.76078921,89.749,89.616,2.61716932]
[1645969301266,73.76078921,89.749,89.618,108.9]
[1645969301267,2.74678921,89.748,89.618,108.9]
[1645969301466,2.74678921,89.748,89.619,12.73727606]
[1645969301664,111.64678921,89.748,89.63,16.735]
[1645969301865,111.64678921,89.748,89.631,2.30643914]
[1645969302067,2.74678921,89.747,89.631,2.30643914]
[1645969302265,2.74678921,89.747,89.631,111.20643914]
[1645969302465,2.74678921,89.747,89.632,2.77319418]
[1645969302866,2.74678921,89.747,89.651,35.52678975]
[1645969303067,2.74678921,89.747,89.652,111.81392836]
[1645969303268,46.1483,89.749,89.653,2.78989872]
[1645969303467,46.1483,89.749,89.655,3.16641049]
[1645969303667,46.1483,89.749,89.656,0.25]
[1645969303870,46.1483,89.749,89.655,3.16641049]
[1645969304467,2.74678921,89.783,89.661,108.9]
[1645969304672,2.74678921,89.783,89.662,2.68729044]
[1645969304874,2.74678921,89.783,89.663,6.25]
[1645969305169,2.74678921,89.783,89.663,8.99678921]
[1645969305369,48.2634,89.795,89.664,113.358]
[1645969305569,48.2634,89.795,89.69,16.7242]
[1645969305772,2.74678921,89.821,89.693,108.9]
[1645969305979,2.74678921,89.821,89.696,2.28624338]
[1645969306171,2.74678921,89.821,89.699,2.60612638]
[1645969306374,47.5662,89.829,89.694,6.25]
[1645969306375,47.5662,89.829,89.702,2.74714666]
[1645969306571,47.5662,89.829,89.704,108.9]
[1645969306772,108.9,89.828,89.72,16.7181]
[1645969307071,1.6802822,89.827,89.703,2.74678921]
[1645969307272,2.74678921,89.827,89.694,2.48971948]
[1645969307490,4.31854876,89.827,89.695,6.0]
[1645969307675,2.74678921,89.826,89.694,111.38971948]
[1645969307874,47.5662,89.829,89.712,3.07315091]
[1645969308074,47.5662,89.829,89.715,2.77902026]
[1645969308279,47.5662,89.829,89.717,108.9]
[1645969308473,47.5662,89.829,89.719,108.9]
[1645969308676,47.5662,89.829,89.721,108.9]
[1645969308878,2.74678921,89.852,89.723,108.9]
[1645969309074,157.9799,89.858,89.722,8.72613879]
[1645969309075,2.74678921,89.828,89.725,108.9]
[1645969309273,2.74678921,89.857,89.727,108.9]
[1645969309474,2.74678921,89.857,89.74,16.7153]
[1645969309674,108.9,89.853,89.741,2.85221269]
[1645969309876,1.47610301,89.852,89.741,2.85221269]
[1645969310076,4.22289222,89.852,89.741,2.85221269]
[1645969310475,108.9,89.85,89.741,2.85221269]
[1645969310876,2.74678921,89.849,89.741,2.85221269]
[1645969311082,4.20827672,89.849,89.741,2.85221269]
[1645969311275,4.20827672,89.849,89.721,2.79405815]
[1645969311276,2.74678921,89.849,89.721,2.79405815]
[1645969311478,14.79482484,89.852,89.721,2.79405815]
[1645969311479,108.9,89.847,89.721,2.79405815]
[1645969311977,2.74678921,89.846,89.722,6.25]
[1645969312577,131.6367,89.845,89.73,16.7168]
[1645969312779,1.50096952,89.844,89.731,3.06267311]
[1645969312981,4.6035451,89.844,89.731,0.25]
[1645969313183,22.7367,89.845,89.731,2.69505728]
[1645969313480,2.74678921,89.843,89.731,0.25]
[1645969313679,2.74678921,89.843,89.741,2.82364929]
[1645969313880,22.7367,89.845,89.742,2.76755655]
[1645969314279,22.7367,89.845,89.742,0.25]
[1645969314879,22.7367,89.845,89.735,2.5752132]
[1645969314880,2.74678921,89.844,89.735,2.5752132]
[1645969315098,2.74678921,89.844,89.707,2.74678921]
[1645969315099,2.74678921,89.844,89.723,2.97633342]
[1645969315298,2.74678921,89.844,89.724,0.25]
[1645969315698,4.12144793,89.844,89.724,0.25]
[1645969315897,2.74678921,89.844,89.724,0.25]
[1645969316097,131.6367,89.845,89.724,0.25]
[1645969316098,2.74678921,89.843,89.724,0.25]
[1645969316297,2.74678921,89.843,89.723,2.97633342]
[1645969316499,2.74678921,89.843,89.73,16.7171]
[1645969316801,2.74678921,89.843,89.731,2.75462368]
[1645969317606,2.74678921,89.843,89.741,108.9]
[1645969317801,108.9,89.855,89.743,108.9]
[1645969318001,108.9,89.855,89.744,9.05820252]
[1645969318204,108.9,89.855,89.744,6.0]
[1645969318402,108.9,89.855,89.734,108.9]
[1645969318600,108.9,89.855,89.735,8.36147792]
[1645969318800,108.9,89.857,89.76,16.7114]
[1645969319001,108.9,89.855,89.761,35.62092824]
[1645969319201,108.9,89.855,89.762,2.90474148]
[1645969320304,108.9,89.855,89.763,0.25]
[1645969320505,24.4704,89.856,89.763,0.25]
[1645969320705,24.4704,89.856,89.762,2.90474148]
[1645969321305,24.3149,89.858,89.763,0.25]
[1645969321509,24.3149,89.858,89.763,6.00978312]
[1645969321711,1.74427578,89.901,89.765,2.36660306]
[1645969321913,1.71218128,89.898,89.768,2.73701088]
[1645969322206,46.8492,89.9,89.79,55.6679]
[1645969322407,46.8492,89.9,89.793,108.9]
[1645969322606,46.8492,89.9,89.795,108.9]
[1645969322805,46.8492,89.9,89.796,9.18675456]
[1645969323009,108.9,89.899,89.8,16.7004]
[1645969323206,46.8492,89.9,89.801,2.77598625]
[1645969323405,46.8492,89.9,89.793,2.46493339]
[1645969324007,108.9,89.899,89.793,2.46493339]
[1645969324208,46.8492,89.9,89.793,2.46493339]
[1645969325010,26.23659424,89.899,89.793,2.46493339]
[1645969326011,26.23659424,89.899,89.794,0.25]
[1645969326209,26.23659424,89.899,89.794,2.91603705]
[1645969326610,108.9,89.898,89.794,2.91603705]
[1645969327013,108.9,89.896,89.794,2.91603705]
[1645969327410,108.9,89.894,89.794,2.91603705]
[1645969327812,26.23659424,89.893,89.794,2.91603705]
[1645969328012,1.65363904,89.891,89.794,2.66603705]
[1645969328412,1.48447066,89.888,89.794,2.66603705]
[1645969328612,28.98338345,89.89,89.794,2.66603705]
[1645969328812,26.23659424,89.887,89.794,2.66603705]
[1645969329013,108.9,89.886,89.794,2.66603705]
[1645969329413,135.13659424,89.885,89.794,2.66603705]
[1645969329813,108.9,89.883,89.794,2.66603705]
[1645969330213,108.9,89.881,89.794,2.66603705]
[1645969330613,1.4409145,89.878,89.761,2.94874084]
[1645969330814,1.4409145,89.878,89.75,16.4763]
[1645969330815,1.4421732,89.875,89.748,2.89012412]
[1645969331113,1.66263034,89.873,89.748,2.89012412]
[1645969331515,108.9,89.871,89.758,30.63220234]
[1645969331713,108.9,89.859,89.759,2.37550679]
[1645969331914,155.6863,89.859,89.759,2.37550679]
[1645969332313,181.92289424,89.859,89.759,2.37550679]
[1645969332514,73.02289424,89.859,89.759,2.37550679]
[1645969332714,73.02289424,89.859,89.76,0.25]
[1645969333013,73.02289424,89.859,89.761,3.0048233]
[1645969333415,73.02289424,89.859,89.762,0.25]
[1645969336718,5.42670483,89.897,89.762,0.25]
[1645969336918,16.6472,89.94,89.77,16.7094]
[1645969337117,1.45503726,89.936,89.783,5.0]
[1645969337320,4.451,89.955,89.785,108.9]
[1645969337518,1.71949026,89.983,89.813,5.0]
[1645969337718,28.5413281,89.982,89.823,5.0]
[1645969337920,28.5413281,89.982,89.87,16.6869]
[1645969338219,28.5413281,89.982,89.873,2.50501394]
[1645969338418,28.5413281,89.982,89.874,4.698]
[1645969338818,28.5413281,89.982,89.874,0.25]
[1645969339423,2.74678921,89.981,89.867,0.25]
[1645969339620,28.5413281,89.982,89.867,0.25]
[1645969339923,2.74678921,89.981,89.88,16.6888]
[1645969340119,111.64678921,89.981,89.881,2.72471181]
[1645969340320,28.5413281,89.982,89.882,0.25]
[1645969340721,28.5413281,89.982,89.881,2.72471181]
[1645969341120,4.53081597,89.981,89.842,4.447]
[1645969341321,1.39512504,89.98,89.843,0.25]
[1645969341521,4.14191425,89.98,89.826,2.72155838]
[1645969341720,111.17,89.978,89.826,2.72155838]
[1645969341920,108.9,89.966,89.826,2.72155838]
[1645969342124,55.675,89.96,89.806,2.92289169]
[1645969342321,55.675,89.96,89.793,2.74678921]
[1645969342322,108.9,89.958,89.794,51.6822]
[1645969342526,1.44059281,89.957,89.807,2.74678921]
[1645969342723,1.69938704,89.957,89.808,4.45]
[1645969342925,1.69938704,89.957,89.809,6.0]
[1645969343124,1.69938704,89.957,89.81,113.35]
[1645969343324,1.69938704,89.957,89.813,2.66941564]
[1645969343523,1.69938704,89.957,89.83,16.6983]
[1645969343724,1.69938704,89.957,89.831,6.25]
[1645969343923,1.69938704,89.957,89.816,3.03305945]
[1645969344125,1.69938704,89.957,89.817,8.99678921]
[1645969344325,1.69938704,89.957,89.819,2.63699501]
[1645969344524,4.449,89.956,89.819,2.63699501]
[1645969344724,4.449,89.956,89.83,16.6978]
[1645969344925,1.4441387,89.955,89.831,3.11647765]
[1645969345625,1.84631427,89.952,89.831,3.11647765]
[1645969345826,4.449,89.951,89.831,3.11647765]
[1645969346026,108.9,89.95,89.831,3.11647765]
[1645969346226,1.65502345,89.947,89.831,3.11647765]
[1645969346426,16.8987,89.957,89.807,2.74678921]
[1645969346427,143.47306193,89.939,89.811,2.70400969]
[1645969346627,4.45,89.938,89.811,2.70400969]
[1645969346828,108.9,89.937,89.811,2.70400969]
[1645969347027,1.3952058,89.934,89.811,2.70400969]
[1645969347228,4.45,89.933,89.811,2.70400969]
[1645969347428,2.74678921,89.936,89.821,108.9]
[1645969347635,33.14184371,89.939,89.824,3.04639155]
[1645969347829,33.14184371,89.939,89.827,3.02740901]
[1645969348030,33.14184371,89.939,89.83,2.77722272]
[1645969348329,2.74678921,89.938,89.831,6.25]
[1645969348631,33.14184371,89.939,89.85,16.6939]
[1645969348830,33.14184371,89.939,89.851,2.67472898]
[1645969349232,33.14184371,89.939,89.851,0.25]
[1645969349832,33.14184371,89.939,89.852,2.74678921]
[1645969350031,33.14184371,89.939,89.854,108.9]
[1645969350234,33.14184371,89.939,89.856,3.09012555]
[1645969350435,33.14184371,89.939,89.857,6.25]
[1645969350633,33.14184371,89.939,89.861,111.48095751]
[1645969350832,33.14184371,89.939,89.857,6.25]
[1645969350833,33.14184371,89.939,89.864,2.82064135]
[1645969351033,4.449,89.998,89.867,2.72394701]
[1645969351234,47.1679,90.001,89.869,108.9]
[1645969351435,2.74678921,90.0,89.871,108.9]
[1645969351636,2.24678921,90.0,89.881,108.9]
[1645969351833,2.24678921,90.0,89.87,61.8698]
[1645969351834,2.74678921,90.017,89.884,2.74462236]
[1645969352034,143.66720652,90.016,89.887,2.79929182]
[1645969352233,34.76720652,90.016,89.89,3.07414072]
[1645969352435,34.76720652,90.016,89.892,108.9]
[1645969352737,1.36172066,90.056,89.895,2.41712906]
[1645969352738,2.74678921,90.052,89.895,2.41712906]